Workbook

Sheet Sheet1
A1: اسم المريض | B1: =البداية!B6 -> 0
A2: رقم موبايل المريض | B2: =البداية!B7 -> 0
A3: تعاملات المريض خلال الشهر | AA3: الــسنــة
A4: تاريخ اليوم | B4: التشخيص | C4: المبلغ الكلي المدفوع | D4: حساب المعمل | E4: الاجمالي | F4: الطبيب المعالج | G4: اجمالي نسبة الطبيب | H4: اجمالي الربح | AA4: =البداية!C8 -> 2020 | AB4: شهر | AC4: =البداية!B8 -> 4
A5: =IF(ROWS($AB$3:AB3)>DAY(EOMONTH(DATE($AA$4,$AC$4,1),0)),"",DATE($AA$4,$AC$4,ROWS($AB$3:AB3))) -> 2020-04-01 | E5: =C5-D5 -> 0 | G5: =IF(E5>0,E5*40%,"") ->  | H5: =IF(E5>0,E5-G5,"") ->  | I5: =IF(B5>0,$B$1,"") ->  | J5: =IF(C5>0,$B$2,"") -> 
A6: =IF(ROWS($AB$3:AB4)>DAY(EOMONTH(DATE($AA$4,$AC$4,1),0)),"",DATE($AA$4,$AC$4,ROWS($AB$3:AB4))) -> 2020-04-02 | E6: =C6-D6 -> 0 | G6: =IF(E6>0,E6*40%,"") ->  | H6: =IF(E6>0,E6-G6,"") ->  | I6: =IF(B6>0,$B$1,"") ->  | J6: =IF(C6>0,$B$2,"") -> 
A7: =IF(ROWS($AB$3:AB5)>DAY(EOMONTH(DATE($AA$4,$AC$4,1),0)),"",DATE($AA$4,$AC$4,ROWS($AB$3:AB5))) -> 2020-04-03 | E7: =C7-D7 -> 0 | H7: =IF(E7>0,E7-G7,"") ->  | I7: =IF(B7>0,$B$1,"") -> 
A8: =IF(ROWS($AB$3:AB6)>DAY(EOMONTH(DATE($AA$4,$AC$4,1),0)),"",DATE($AA$4,$AC$4,ROWS($AB$3:AB6))) -> 2020-04-04 | E8: 0
A9: =IF(ROWS($AB$3:AB7)>DAY(EOMONTH(DATE($AA$4,$AC$4,1),0)),"",DATE($AA$4,$AC$4,ROWS($AB$3:AB7))) -> 2020-04-05 | E9: 0
A10: =IF(ROWS($AB$3:AB8)>DAY(EOMONTH(DATE($AA$4,$AC$4,1),0)),"",DATE($AA$4,$AC$4,ROWS($AB$3:AB8))) -> 2020-04-06 | E10: 0
A11: =IF(ROWS($AB$3:AB9)>DAY(EOMONTH(DATE($AA$4,$AC$4,1),0)),"",DATE($AA$4,$AC$4,ROWS($AB$3:AB9))) -> 2020-04-07 | E11: 0
A12: =IF(ROWS($AB$3:AB10)>DAY(EOMONTH(DATE($AA$4,$AC$4,1),0)),"",DATE($AA$4,$AC$4,ROWS($AB$3:AB10))) -> 2020-04-08 | E12: 0
A13: =IF(ROWS($AB$3:AB11)>DAY(EOMONTH(DATE($AA$4,$AC$4,1),0)),"",DATE($AA$4,$AC$4,ROWS($AB$3:AB11))) -> 2020-04-09 | E13: 0
A14: =IF(ROWS($AB$3:AB12)>DAY(EOMONTH(DATE($AA$4,$AC$4,1),0)),"",DATE($AA$4,$AC$4,ROWS($AB$3:AB12))) -> 2020-04-10 | E14: 0
A15: =IF(ROWS($AB$3:AB13)>DAY(EOMONTH(DATE($AA$4,$AC$4,1),0)),"",DATE($AA$4,$AC$4,ROWS($AB$3:AB13))) -> 2020-04-11 | E15: 0
A16: =IF(ROWS($AB$3:AB14)>DAY(EOMONTH(DATE($AA$4,$AC$4,1),0)),"",DATE($AA$4,$AC$4,ROWS($AB$3:AB14))) -> 2020-04-12 | E16: 0
A17: =IF(ROWS($AB$3:AB15)>DAY(EOMONTH(DATE($AA$4,$AC$4,1),0)),"",DATE($AA$4,$AC$4,ROWS($AB$3:AB15))) -> 2020-04-13 | E17: 0
A18: =IF(ROWS($AB$3:AB16)>DAY(EOMONTH(DATE($AA$4,$AC$4,1),0)),"",DATE($AA$4,$AC$4,ROWS($AB$3:AB16))) -> 2020-04-14 | E18: 0
A19: =IF(ROWS($AB$3:AB17)>DAY(EOMONTH(DATE($AA$4,$AC$4,1),0)),"",DATE($AA$4,$AC$4,ROWS($AB$3:AB17))) -> 2020-04-15 | E19: 0
A20: =IF(ROWS($AB$3:AB18)>DAY(EOMONTH(DATE($AA$4,$AC$4,1),0)),"",DATE($AA$4,$AC$4,ROWS($AB$3:AB18))) -> 2020-04-16 | E20: 0
A21: =IF(ROWS($AB$3:AB19)>DAY(EOMONTH(DATE($AA$4,$AC$4,1),0)),"",DATE($AA$4,$AC$4,ROWS($AB$3:AB19))) -> 2020-04-17 | E21: 0
A22: =IF(ROWS($AB$3:AB20)>DAY(EOMONTH(DATE($AA$4,$AC$4,1),0)),"",DATE($AA$4,$AC$4,ROWS($AB$3:AB20))) -> 2020-04-18 | E22: 0
A23: =IF(ROWS($AB$3:AB21)>DAY(EOMONTH(DATE($AA$4,$AC$4,1),0)),"",DATE($AA$4,$AC$4,ROWS($AB$3:AB21))) -> 2020-04-19 | E23: 0
A24: =IF(ROWS($AB$3:AB22)>DAY(EOMONTH(DATE($AA$4,$AC$4,1),0)),"",DATE($AA$4,$AC$4,ROWS($AB$3:AB22))) -> 2020-04-20 | E24: 0
A25: =IF(ROWS($AB$3:AB23)>DAY(EOMONTH(DATE($AA$4,$AC$4,1),0)),"",DATE($AA$4,$AC$4,ROWS($AB$3:AB23))) -> 2020-04-21 | E25: 0
A26: =IF(ROWS($AB$3:AB24)>DAY(EOMONTH(DATE($AA$4,$AC$4,1),0)),"",DATE($AA$4,$AC$4,ROWS($AB$3:AB24))) -> 2020-04-22 | E26: 0
A27: =IF(ROWS($AB$3:AB25)>DAY(EOMONTH(DATE($AA$4,$AC$4,1),0)),"",DATE($AA$4,$AC$4,ROWS($AB$3:AB25))) -> 2020-04-23 | E27: 0
A28: =IF(ROWS($AB$3:AB26)>DAY(EOMONTH(DATE($AA$4,$AC$4,1),0)),"",DATE($AA$4,$AC$4,ROWS($AB$3:AB26))) -> 2020-04-24 | E28: 0
A29: =IF(ROWS($AB$3:AB27)>DAY(EOMONTH(DATE($AA$4,$AC$4,1),0)),"",DATE($AA$4,$AC$4,ROWS($AB$3:AB27))) -> 2020-04-25 | E29: 0
A30: =IF(ROWS($AB$3:AB28)>DAY(EOMONTH(DATE($AA$4,$AC$4,1),0)),"",DATE($AA$4,$AC$4,ROWS($AB$3:AB28))) -> 2020-04-26 | E30: 0
A31: =IF(ROWS($AB$3:AB29)>DAY(EOMONTH(DATE($AA$4,$AC$4,1),0)),"",DATE($AA$4,$AC$4,ROWS($AB$3:AB29))) -> 2020-04-27 | E31: 0
A32: =IF(ROWS($AB$3:AB30)>DAY(EOMONTH(DATE($AA$4,$AC$4,1),0)),"",DATE($AA$4,$AC$4,ROWS($AB$3:AB30))) -> 2020-04-28 | E32: 0
A33: =IF(ROWS($AB$3:AB31)>DAY(EOMONTH(DATE($AA$4,$AC$4,1),0)),"",DATE($AA$4,$AC$4,ROWS($AB$3:AB31))) -> 2020-04-29 | E33: 0
A34: =IF(ROWS($AB$3:AB32)>DAY(EOMONTH(DATE($AA$4,$AC$4,1),0)),"",DATE($AA$4,$AC$4,ROWS($AB$3:AB32))) -> 2020-04-30 | E34: 0
A35: =IF(ROWS($AB$3:AB33)>DAY(EOMONTH(DATE($AA$4,$AC$4,1),0)),"",DATE($AA$4,$AC$4,ROWS($AB$3:AB33))) ->  | E35: 0
A36: اجمالي الكل | C36: =SUM(C5:C35) -> 0 | D36: =SUM(D5:D35) -> 0 | E36: 0 | F36: =SUM(F5:F35) -> 0
E39: =C39-D39 -> 0
E40: 0

Sheet المصروفات
A4: مصروفات عيادة الاسنان خلال الشهر
A5: 1
A6: 2
A7: 3
A8: 4
A9: 5
A10: 6
A11: 7
A12: 8
A13: 9
A14: 10
A15: 11
A16: 12
A17: 13
A18: 14
A19: 15
A20: 16
A21: 17
A22: 18
A23: 19
A24: 20
A25: 21
A26: 22
A27: 23
A28: 24
A29: 25
A30: 26
A31: 27
A32: 28
A33: 29
A34: 30
A35: 31
A36: 32
A37: 33
A38: 34
A39: 35
A40: 36
A41: 37
A42: 38
A43: 39
A44: 40
A45: 41
A46: 42
A47: 43
A48: 44
A49: الاجمالي | C49: =SUM(B5:B21) -> 0

Sheet البداية
D1: =LEN(B6) -> 0 | AK1: =B6 -> 0 | AL1: =B7 -> 0
A6: اسم المريض
A7: رقم الموبايل
A8: التاريخ | B8: 4 | C8: 2020

Sheet التقرير
A1: 1 | B1: اجمالي الربح بدون الخصومات | D1: =SUM(F11:F698) -> 18600
A2: 2 | B2: اسم الطبيب | C2: احمد
A3: 3 | C3: حاتم
A4: 4 | C4: رنيا
A5: 5 | C5: محمد
A6: 6 | B6: اجمالي حساب المعمل | D6: =SUM(G11:G700) -> 3600
B7: المصروفات | D7: =المصروفات!C49 -> 0
A8: 7 | B8: اجمالي المتبقي | D8: =D1-D2-D3-D4-D5-D6-D7 -> 15000
A9: كشف باسماء وتعاملات المرضى خلال الشهر
A10: م | B10: اسم المريض | C10: رقم الموبايل | D10: التاريخ | E10: التشخيص | F10: اجمالي البلغ | G10: حساب المعمل | H10: المتبقي | I10: الطبيب المعالج | J10: اجمالي نسبة الطبيب 40% | K10: الربح | L10: حالة المريض | M10: السبب ان وجد
A11: 1 | B11: محمد عبد الناصر | C11: 01090895624 | D11: 2020-04-01 | E11: تركيب درس | F11: 5000 | G11: 1500 | H11: 3500 | I11: حاتم | J11: 1400 | K11: 2100
A12: 2 | B12: محمد عبد الناصر | C12: 01090895624 | D12: 2020-04-05 | E12: حشو عصب | F12: 800 | G12: 100 | H12: 700 | I12: احمد | J12: 280 | K12: 420
A13: 3 | B13: محمد عبد الناصر | C13: 01090895624 | D13: 2020-04-08 | E13: تركيب سنة | F13: 2000 | G13: 500 | H13: 1500 | I13: محمد | J13: 600 | K13: 900
A14: 4 | B14: محمد عبد الناصر | C14: 01090895624 | D14: 2020-04-22 | E14: تنظيف | F14: 400 | H14: 400 | I14: احمد | J14: 160 | K14: 240
A15: 5 | B15: محمد عبد الناصر | C15: 01090895624 | D15: 2020-04-30 | E15: تقويم | F15: 2000 | G15: 500 | H15: 1500 | I15: حاتم | J15: 600 | K15: 900
A16: 6 | B16: احمد عبد العظيم محمد السيد | C16: 01212154899 | D16: 2020-04-02 | E16: تركيب درس | F16: 5000 | G16: 500 | H16: 4500 | I16: احمد | J16: 1800 | K16: 2700
A17: 7 | B17: احمد عبد العظيم محمد السيد | C17: 01212154899 | D17: 2020-04-05 | E17: خلع اسنان | F17: 400 | H17: 400 | I17: احمد | J17: 160 | K17: 240
A18: 8 | B18: احمد عبد العظيم محمد السيد | C18: 01212154899 | D18: 2020-04-08 | E18: ليزر رانيا | F18: 1000 | H18: 1000 | I18: رانيا | J18: 400 | K18: 600
A19: 9 | B19: احمد عبد العظيم محمد السيد | C19: 01212154899 | D19: 2020-04-16 | E19: تقويم | F19: 2000 | G19: 500 | H19: 1500 | I19: احمد | J19: 600 | K19: 900
F20: =IFERROR(INDIRECT("'"&$C20&"'!"&"b36"),"") -> 
F76: =IFERROR(INDIRECT("'"&$C76&"'!"&"b36"),"") -> 
F140: =IFERROR(INDIRECT("'"&$C140&"'!"&"b36"),"") -> 
F204: =IFERROR(INDIRECT("'"&$C204&"'!"&"b36"),"") -> 
F268: =IFERROR(INDIRECT("'"&$C268&"'!"&"b36"),"") -> 
F332: =IFERROR(INDIRECT("'"&$C332&"'!"&"b36"),"") -> 
F396: =IFERROR(INDIRECT("'"&$C396&"'!"&"b36"),"") -> 
F460: =IFERROR(INDIRECT("'"&$C460&"'!"&"b36"),"") -> 
F524: =IFERROR(INDIRECT("'"&$C524&"'!"&"b36"),"") -> 
F588: =IFERROR(INDIRECT("'"&$C588&"'!"&"b36"),"") -> 
F652: =IFERROR(INDIRECT("'"&$C652&"'!"&"b36"),"") -> 

Sheet محمد عبد الناصر
A1: اسم المريض | B1: محمد عبد الناصر | C1: محمد عبد الناصر
A2: رقم موبايل المريض | B2: 01090895624 | C2: 01090895624
A3: تعاملات المريض خلال الشهر | AB3: الــسنــة
A4: تاريخ اليوم | B4: التشخيص | C4: المبلغ الكلي المدفوع | D4: حساب المعمل | E4: الاجمالي | F4: الطبيب المعالج | G4: اجمالي نسبة الطبيب | H4: اجمالي الربح | AB4: =البداية!C8 -> 2020 | AC4: شهر | AD4: =البداية!B8 -> 4
A5: =IF(ROWS($AC$3:AC3)>DAY(EOMONTH(DATE($AB$4,$AD$4,1),0)),"",DATE($AB$4,$AD$4,ROWS($AC$3:AC3))) -> 2020-04-01 | B5: تركيب درس | C5: 5000 | D5: 1500 | E5: =C5-D5 -> 3500 | F5: حاتم | G5: =IF(D5>0,E5*40%,"") -> 1400 | H5: =IF(E5>0,E5-G5,"") -> 2100 | J5: =IF(B5>0,$B$1,"") -> محمد عبد الناصر | K5: =IF(C5>0,$B$2,"") -> 01090895624
A6: =IF(ROWS($AC$3:AC4)>DAY(EOMONTH(DATE($AB$4,$AD$4,1),0)),"",DATE($AB$4,$AD$4,ROWS($AC$3:AC4))) -> 2020-04-02 | E6: =C6-D6 -> 0 | G6: =IF(D6>0,E6*40%,"") ->  | H6: =IF(E6>0,E6-G6,"") ->  | J6: =IF(B6>0,$B$1,"") ->  | K6: =IF(C6>0,$B$2,"") -> 
A7: =IF(ROWS($AC$3:AC5)>DAY(EOMONTH(DATE($AB$4,$AD$4,1),0)),"",DATE($AB$4,$AD$4,ROWS($AC$3:AC5))) -> 2020-04-03 | E7: 0 | H7: =IF(E7>0,E7-G7,"") -> 
A8: =IF(ROWS($AC$3:AC6)>DAY(EOMONTH(DATE($AB$4,$AD$4,1),0)),"",DATE($AB$4,$AD$4,ROWS($AC$3:AC6))) -> 2020-04-04 | E8: 0
A9: =IF(ROWS($AC$3:AC7)>DAY(EOMONTH(DATE($AB$4,$AD$4,1),0)),"",DATE($AB$4,$AD$4,ROWS($AC$3:AC7))) -> 2020-04-05 | B9: حشو عصب | C9: 800 | D9: 100 | E9: 700 | F9: احمد | G9: 280 | H9: 420 | J9: محمد عبد الناصر | K9: 01090895624
A10: =IF(ROWS($AC$3:AC8)>DAY(EOMONTH(DATE($AB$4,$AD$4,1),0)),"",DATE($AB$4,$AD$4,ROWS($AC$3:AC8))) -> 2020-04-06 | E10: 0
A11: =IF(ROWS($AC$3:AC9)>DAY(EOMONTH(DATE($AB$4,$AD$4,1),0)),"",DATE($AB$4,$AD$4,ROWS($AC$3:AC9))) -> 2020-04-07 | E11: 0
A12: =IF(ROWS($AC$3:AC10)>DAY(EOMONTH(DATE($AB$4,$AD$4,1),0)),"",DATE($AB$4,$AD$4,ROWS($AC$3:AC10))) -> 2020-04-08 | B12: تركيب سنة | C12: 2000 | D12: 500 | E12: 1500 | F12: محمد | G12: 600 | H12: 900 | J12: محمد عبد الناصر | K12: 01090895624
A13: =IF(ROWS($AC$3:AC11)>DAY(EOMONTH(DATE($AB$4,$AD$4,1),0)),"",DATE($AB$4,$AD$4,ROWS($AC$3:AC11))) -> 2020-04-09 | E13: 0
A14: =IF(ROWS($AC$3:AC12)>DAY(EOMONTH(DATE($AB$4,$AD$4,1),0)),"",DATE($AB$4,$AD$4,ROWS($AC$3:AC12))) -> 2020-04-10 | E14: 0
A15: =IF(ROWS($AC$3:AC13)>DAY(EOMONTH(DATE($AB$4,$AD$4,1),0)),"",DATE($AB$4,$AD$4,ROWS($AC$3:AC13))) -> 2020-04-11 | E15: 0
A16: =IF(ROWS($AC$3:AC14)>DAY(EOMONTH(DATE($AB$4,$AD$4,1),0)),"",DATE($AB$4,$AD$4,ROWS($AC$3:AC14))) -> 2020-04-12 | E16: 0
A17: =IF(ROWS($AC$3:AC15)>DAY(EOMONTH(DATE($AB$4,$AD$4,1),0)),"",DATE($AB$4,$AD$4,ROWS($AC$3:AC15))) -> 2020-04-13 | E17: 0
A18: =IF(ROWS($AC$3:AC16)>DAY(EOMONTH(DATE($AB$4,$AD$4,1),0)),"",DATE($AB$4,$AD$4,ROWS($AC$3:AC16))) -> 2020-04-14 | E18: 0
A19: =IF(ROWS($AC$3:AC17)>DAY(EOMONTH(DATE($AB$4,$AD$4,1),0)),"",DATE($AB$4,$AD$4,ROWS($AC$3:AC17))) -> 2020-04-15 | E19: 0
A20: =IF(ROWS($AC$3:AC18)>DAY(EOMONTH(DATE($AB$4,$AD$4,1),0)),"",DATE($AB$4,$AD$4,ROWS($AC$3:AC18))) -> 2020-04-16 | E20: 0
A21: =IF(ROWS($AC$3:AC19)>DAY(EOMONTH(DATE($AB$4,$AD$4,1),0)),"",DATE($AB$4,$AD$4,ROWS($AC$3:AC19))) -> 2020-04-17 | E21: 0
A22: =IF(ROWS($AC$3:AC20)>DAY(EOMONTH(DATE($AB$4,$AD$4,1),0)),"",DATE($AB$4,$AD$4,ROWS($AC$3:AC20))) -> 2020-04-18 | E22: 0
A23: =IF(ROWS($AC$3:AC21)>DAY(EOMONTH(DATE($AB$4,$AD$4,1),0)),"",DATE($AB$4,$AD$4,ROWS($AC$3:AC21))) -> 2020-04-19 | E23: 0 | G23: =IF(E23>0,E23*40%,"") -> 
A24: =IF(ROWS($AC$3:AC22)>DAY(EOMONTH(DATE($AB$4,$AD$4,1),0)),"",DATE($AB$4,$AD$4,ROWS($AC$3:AC22))) -> 2020-04-20 | E24: 0 | G24: =IF(E24>0,E24*40%,"") -> 
A25: =IF(ROWS($AC$3:AC23)>DAY(EOMONTH(DATE($AB$4,$AD$4,1),0)),"",DATE($AB$4,$AD$4,ROWS($AC$3:AC23))) -> 2020-04-21 | E25: 0
A26: =IF(ROWS($AC$3:AC24)>DAY(EOMONTH(DATE($AB$4,$AD$4,1),0)),"",DATE($AB$4,$AD$4,ROWS($AC$3:AC24))) -> 2020-04-22 | B26: تنظيف | C26: 400 | E26: 400 | F26: احمد | G26: 160 | H26: 240 | J26: محمد عبد الناصر | K26: 01090895624
A27: =IF(ROWS($AC$3:AC25)>DAY(EOMONTH(DATE($AB$4,$AD$4,1),0)),"",DATE($AB$4,$AD$4,ROWS($AC$3:AC25))) -> 2020-04-23 | E27: 0
A28: =IF(ROWS($AC$3:AC26)>DAY(EOMONTH(DATE($AB$4,$AD$4,1),0)),"",DATE($AB$4,$AD$4,ROWS($AC$3:AC26))) -> 2020-04-24 | E28: 0
A29: =IF(ROWS($AC$3:AC27)>DAY(EOMONTH(DATE($AB$4,$AD$4,1),0)),"",DATE($AB$4,$AD$4,ROWS($AC$3:AC27))) -> 2020-04-25 | E29: 0
A30: =IF(ROWS($AC$3:AC28)>DAY(EOMONTH(DATE($AB$4,$AD$4,1),0)),"",DATE($AB$4,$AD$4,ROWS($AC$3:AC28))) -> 2020-04-26 | E30: 0
A31: =IF(ROWS($AC$3:AC29)>DAY(EOMONTH(DATE($AB$4,$AD$4,1),0)),"",DATE($AB$4,$AD$4,ROWS($AC$3:AC29))) -> 2020-04-27 | E31: 0
A32: =IF(ROWS($AC$3:AC30)>DAY(EOMONTH(DATE($AB$4,$AD$4,1),0)),"",DATE($AB$4,$AD$4,ROWS($AC$3:AC30))) -> 2020-04-28 | E32: 0
A33: =IF(ROWS($AC$3:AC31)>DAY(EOMONTH(DATE($AB$4,$AD$4,1),0)),"",DATE($AB$4,$AD$4,ROWS($AC$3:AC31))) -> 2020-04-29 | E33: 0
A34: =IF(ROWS($AC$3:AC32)>DAY(EOMONTH(DATE($AB$4,$AD$4,1),0)),"",DATE($AB$4,$AD$4,ROWS($AC$3:AC32))) -> 2020-04-30 | B34: تقويم | C34: 2000 | D34: 500 | E34: 1500 | F34: حاتم | G34: 600 | H34: 900 | J34: محمد عبد الناصر | K34: 01090895624
A35: =IF(ROWS($AC$3:AC33)>DAY(EOMONTH(DATE($AB$4,$AD$4,1),0)),"",DATE($AB$4,$AD$4,ROWS($AC$3:AC33))) ->  | E35: 0
A36: اجمالي الكل | C36: =SUM(C5:C35) -> 10200 | D36: =SUM(D5:D35) -> 2600 | E36: 7600 | F36: 0
E39: 0
E40: 0

Sheet احمد عبد العظيم محمد السيد
A1: اسم المريض | B1: احمد عبد العظيم محمد السيد | C1: احمد عبد العظيم محمد السيد
A2: رقم موبايل المريض | B2: 01212154899 | C2: 01212154899
A3: تعاملات المريض خلال الشهر | AB3: الــسنــة
A4: تاريخ اليوم | B4: التشخيص | C4: المبلغ الكلي المدفوع | D4: حساب المعمل | E4: الاجمالي | F4: الطبيب المعالج | G4: اجمالي نسبة الطبيب | H4: اجمالي الربح | AB4: =البداية!C8 -> 2020 | AC4: شهر | AD4: =البداية!B8 -> 4
A5: =IF(ROWS($AC$3:AC3)>DAY(EOMONTH(DATE($AB$4,$AD$4,1),0)),"",DATE($AB$4,$AD$4,ROWS($AC$3:AC3))) -> 2020-04-01 | E5: =C5-D5 -> 0 | G5: =IF(E5>0,E5*40%,"") ->  | H5: =IF(E5>0,E5-G5,"") ->  | J5: =IF(B5>0,$B$1,"") ->  | K5: =IF(C5>0,$B$2,"") -> 
A6: =IF(ROWS($AC$3:AC4)>DAY(EOMONTH(DATE($AB$4,$AD$4,1),0)),"",DATE($AB$4,$AD$4,ROWS($AC$3:AC4))) -> 2020-04-02 | B6: تركيب درس | C6: 5000 | D6: 500 | E6: =C6-D6 -> 4500 | F6: احمد | G6: =IF(E6>0,E6*40%,"") -> 1800 | H6: =IF(E6>0,E6-G6,"") -> 2700 | J6: =IF(B6>0,$B$1,"") -> احمد عبد العظيم محمد السيد | K6: =IF(C6>0,$B$2,"") -> 01212154899
A7: =IF(ROWS($AC$3:AC5)>DAY(EOMONTH(DATE($AB$4,$AD$4,1),0)),"",DATE($AB$4,$AD$4,ROWS($AC$3:AC5))) -> 2020-04-03 | E7: =C7-D7 -> 0 | H7: =IF(E7>0,E7-G7,"") ->  | J7: =IF(B7>0,$B$1,"") -> 
A8: =IF(ROWS($AC$3:AC6)>DAY(EOMONTH(DATE($AB$4,$AD$4,1),0)),"",DATE($AB$4,$AD$4,ROWS($AC$3:AC6))) -> 2020-04-04 | E8: 0
A9: =IF(ROWS($AC$3:AC7)>DAY(EOMONTH(DATE($AB$4,$AD$4,1),0)),"",DATE($AB$4,$AD$4,ROWS($AC$3:AC7))) -> 2020-04-05 | B9: خلع اسنان | C9: 400 | E9: 400 | F9: احمد | G9: 160 | H9: 240 | J9: احمد عبد العظيم محمد السيد | K9: 01212154899
A10: =IF(ROWS($AC$3:AC8)>DAY(EOMONTH(DATE($AB$4,$AD$4,1),0)),"",DATE($AB$4,$AD$4,ROWS($AC$3:AC8))) -> 2020-04-06 | E10: 0
A11: =IF(ROWS($AC$3:AC9)>DAY(EOMONTH(DATE($AB$4,$AD$4,1),0)),"",DATE($AB$4,$AD$4,ROWS($AC$3:AC9))) -> 2020-04-07 | E11: 0
A12: =IF(ROWS($AC$3:AC10)>DAY(EOMONTH(DATE($AB$4,$AD$4,1),0)),"",DATE($AB$4,$AD$4,ROWS($AC$3:AC10))) -> 2020-04-08 | B12: ليزر رانيا | C12: 1000 | E12: 1000 | F12: رانيا | G12: 400 | H12: =IF(E12>0,E12-G12,"") -> 600 | J12: احمد عبد العظيم محمد السيد | K12: 01212154899
A13: =IF(ROWS($AC$3:AC11)>DAY(EOMONTH(DATE($AB$4,$AD$4,1),0)),"",DATE($AB$4,$AD$4,ROWS($AC$3:AC11))) -> 2020-04-09 | E13: 0
A14: =IF(ROWS($AC$3:AC12)>DAY(EOMONTH(DATE($AB$4,$AD$4,1),0)),"",DATE($AB$4,$AD$4,ROWS($AC$3:AC12))) -> 2020-04-10 | E14: 0
A15: =IF(ROWS($AC$3:AC13)>DAY(EOMONTH(DATE($AB$4,$AD$4,1),0)),"",DATE($AB$4,$AD$4,ROWS($AC$3:AC13))) -> 2020-04-11 | E15: 0
A16: =IF(ROWS($AC$3:AC14)>DAY(EOMONTH(DATE($AB$4,$AD$4,1),0)),"",DATE($AB$4,$AD$4,ROWS($AC$3:AC14))) -> 2020-04-12 | E16: 0
A17: =IF(ROWS($AC$3:AC15)>DAY(EOMONTH(DATE($AB$4,$AD$4,1),0)),"",DATE($AB$4,$AD$4,ROWS($AC$3:AC15))) -> 2020-04-13 | E17: 0
A18: =IF(ROWS($AC$3:AC16)>DAY(EOMONTH(DATE($AB$4,$AD$4,1),0)),"",DATE($AB$4,$AD$4,ROWS($AC$3:AC16))) -> 2020-04-14 | E18: 0
A19: =IF(ROWS($AC$3:AC17)>DAY(EOMONTH(DATE($AB$4,$AD$4,1),0)),"",DATE($AB$4,$AD$4,ROWS($AC$3:AC17))) -> 2020-04-15 | E19: 0
A20: =IF(ROWS($AC$3:AC18)>DAY(EOMONTH(DATE($AB$4,$AD$4,1),0)),"",DATE($AB$4,$AD$4,ROWS($AC$3:AC18))) -> 2020-04-16 | B20: تقويم | C20: 2000 | D20: 500 | E20: 1500 | F20: احمد | G20: 600 | H20: 900 | J20: احمد عبد العظيم محمد السيد | K20: 01212154899
A21: =IF(ROWS($AC$3:AC19)>DAY(EOMONTH(DATE($AB$4,$AD$4,1),0)),"",DATE($AB$4,$AD$4,ROWS($AC$3:AC19))) -> 2020-04-17 | E21: 0
A22: =IF(ROWS($AC$3:AC20)>DAY(EOMONTH(DATE($AB$4,$AD$4,1),0)),"",DATE($AB$4,$AD$4,ROWS($AC$3:AC20))) -> 2020-04-18 | E22: 0
A23: =IF(ROWS($AC$3:AC21)>DAY(EOMONTH(DATE($AB$4,$AD$4,1),0)),"",DATE($AB$4,$AD$4,ROWS($AC$3:AC21))) -> 2020-04-19 | E23: 0
A24: =IF(ROWS($AC$3:AC22)>DAY(EOMONTH(DATE($AB$4,$AD$4,1),0)),"",DATE($AB$4,$AD$4,ROWS($AC$3:AC22))) -> 2020-04-20 | E24: 0
A25: =IF(ROWS($AC$3:AC23)>DAY(EOMONTH(DATE($AB$4,$AD$4,1),0)),"",DATE($AB$4,$AD$4,ROWS($AC$3:AC23))) -> 2020-04-21 | E25: 0
A26: =IF(ROWS($AC$3:AC24)>DAY(EOMONTH(DATE($AB$4,$AD$4,1),0)),"",DATE($AB$4,$AD$4,ROWS($AC$3:AC24))) -> 2020-04-22 | E26: 0
A27: =IF(ROWS($AC$3:AC25)>DAY(EOMONTH(DATE($AB$4,$AD$4,1),0)),"",DATE($AB$4,$AD$4,ROWS($AC$3:AC25))) -> 2020-04-23 | E27: 0
A28: =IF(ROWS($AC$3:AC26)>DAY(EOMONTH(DATE($AB$4,$AD$4,1),0)),"",DATE($AB$4,$AD$4,ROWS($AC$3:AC26))) -> 2020-04-24 | E28: 0
A29: =IF(ROWS($AC$3:AC27)>DAY(EOMONTH(DATE($AB$4,$AD$4,1),0)),"",DATE($AB$4,$AD$4,ROWS($AC$3:AC27))) -> 2020-04-25 | E29: 0
A30: =IF(ROWS($AC$3:AC28)>DAY(EOMONTH(DATE($AB$4,$AD$4,1),0)),"",DATE($AB$4,$AD$4,ROWS($AC$3:AC28))) -> 2020-04-26 | E30: 0
A31: =IF(ROWS($AC$3:AC29)>DAY(EOMONTH(DATE($AB$4,$AD$4,1),0)),"",DATE($AB$4,$AD$4,ROWS($AC$3:AC29))) -> 2020-04-27 | E31: 0
A32: =IF(ROWS($AC$3:AC30)>DAY(EOMONTH(DATE($AB$4,$AD$4,1),0)),"",DATE($AB$4,$AD$4,ROWS($AC$3:AC30))) -> 2020-04-28 | E32: 0
A33: =IF(ROWS($AC$3:AC31)>DAY(EOMONTH(DATE($AB$4,$AD$4,1),0)),"",DATE($AB$4,$AD$4,ROWS($AC$3:AC31))) -> 2020-04-29 | E33: 0
A34: =IF(ROWS($AC$3:AC32)>DAY(EOMONTH(DATE($AB$4,$AD$4,1),0)),"",DATE($AB$4,$AD$4,ROWS($AC$3:AC32))) -> 2020-04-30 | E34: 0
A35: =IF(ROWS($AC$3:AC33)>DAY(EOMONTH(DATE($AB$4,$AD$4,1),0)),"",DATE($AB$4,$AD$4,ROWS($AC$3:AC33))) ->  | E35: 0
A36: اجمالي الكل | C36: =SUM(C5:C35) -> 8400 | D36: =SUM(D5:D35) -> 1000 | E36: 7400 | F36: 0
E39: 0
E40: 0
